bitfinex-derivatives/quotes_SOLF0:USTF0_20250803
["timestamp","ask_amount","ask_price","bid_price","bid_amount"]
[1754179200766,7.09186897,158.53,158.42,10.50095853]
[1754179200969,7.09186897,158.55,158.44,3.53]
[1754179201268,3.32,158.54,158.46,3.53]
[1754179201859,3.32,158.51,158.46,3.53]
[1754179202063,3.32,158.5,158.39,7.06095853]
[1754179202267,3.32,158.5,158.4,3.53]
[1754179202666,10.41186897,158.53,158.41,10.59095853]
[1754179202870,3.32,158.52,158.42,3.53]
[1754179203972,3.32,158.52,158.42,7.06095853]
[1754179204169,3.32,158.52,158.41,7.06095853]
[1754179204572,3.32,158.52,158.4,7.06095853]
[1754179204766,3.32,158.52,158.49,6.3106]
[1754179204967,3.32,158.52,158.4,7.06095853]
[1754179205265,10.41186897,158.52,158.39,7.06095853]
[1754179205470,10.41186897,158.5,158.37,7.06095853]
[1754179205670,3.32,158.48,158.37,7.06095853]
[1754179205871,3.32,158.47,158.37,7.06095853]
[1754179206070,3.32,158.47,158.36,431.12095853]
[1754179207183,3.32,158.47,158.44,6.3125]
[1754179207779,3.32,158.47,158.45,6.3124]
[1754179207968,3.32,158.47,158.37,7.06095853]
[1754179208376,3.32,158.47,158.36,424.06]
[1754179208677,7.09186897,158.48,158.36,424.06]
[1754179208877,17.72967244,158.59,158.36,424.06]
[1754179208878,3.32,158.46,158.36,424.06]
[1754179209079,7.09186897,158.46,158.33,7.06095853]
[1754179209380,7.09186897,158.44,158.32,117.78]
[1754179209676,6.3143,158.41,158.36,6.3157]
[1754179209977,3.32,158.4,158.32,117.78]
[1754179210178,3.32,158.42,158.32,117.78]
[1754179210375,3.32,158.42,158.39,6.3145]
[1754179210980,3.32,158.42,158.32,117.78]
[1754179211479,3.32,158.41,158.32,117.78]
[1754179211882,3.32,158.41,158.38,6.3149]
[1754179213380,3.32,158.41,158.32,117.78]
[1754179213586,10.41186897,158.4,158.23,7.06095853]
[1754179213785,3.32,158.38,158.22,7.06095853]
[1754179214182,3.32,158.36,158.32,6.3172]
[1754179214383,3.32,158.36,158.21,7.06095853]
[1754179214584,3.32,158.32,158.15,7.06095853]
[1754179214783,7.09186897,158.31,158.12,7.06095853]
[1754179214981,3.32,158.29,158.12,7.06095853]
[1754179215282,3.32,158.29,158.11,12.6519]
[1754179216181,3.32,158.27,158.22,6.3213]
[1754179216378,3.32,158.27,158.11,12.6519]
[1754179216584,3.32,158.34,158.12,12.6512]
[1754179216783,431.31186897,158.36,158.28,6.3189]
[1754179216784,3.32,158.33,158.28,6.3189]
[1754179217286,9.6375,158.33,158.28,6.3189]
[1754179217480,3.32,158.32,158.13,12.6497]
[1754179217884,3.32,158.32,158.29,6.3184]
[1754179218789,3.32,158.32,158.27,6.3193]
[1754179219488,3.32,158.32,158.28,6.319]
[1754179219697,3.32,158.32,158.13,12.6497]
[1754179219882,3.32,158.32,158.14,12.6494]
[1754179220592,3.32,158.34,158.14,12.6494]
[1754179221301,3.32,158.34,158.29,6.3184]
[1754179221590,3.32,158.34,158.18,424.44]
[1754179221889,3.32,158.34,158.3,6.3181]
[1754179222094,3.32,158.34,158.3,9.8481]
[1754179222984,3.32,158.34,158.3,3.53]
[1754179225896,3.32,158.34,158.3,6.3183]
[1754179226094,3.32,158.34,158.31,3.53]
[1754179229395,3.33,158.33,158.3,6.3183]
[1754179229799,3.33,158.33,158.31,3.49]
[1754179230600,3.33,158.32,158.31,3.49]
[1754179232494,3.33,158.32,158.2,167.94134992]
[1754179232704,3.33,158.32,158.21,3.49]
[1754179232894,3.33,158.32,158.2,167.94134992]
[1754179232895,3.33,158.29,158.26,3.49]
[1754179233100,3.33,158.29,158.2,167.94134992]
[1754179233402,3.33,158.29,158.21,3.49]
[1754179233605,3.33,158.3,158.23,3.49]
[1754179233992,18.94,158.3,158.23,3.49]
[1754179234194,18.94,158.29,158.2,167.94134992]
[1754179234394,3.33,158.28,158.21,3.49]
[1754179235001,3.33,158.28,158.2,167.94134992]
[1754179235801,3.33,158.28,158.19,3.49]
[1754179236295,6.3215,158.23,158.19,3.49]
[1754179236498,6.3215,158.23,158.2,3.49]
[1754179236800,22.27,158.29,158.2,3.49]
[1754179237001,117.62,158.28,158.23,6.3209]
[1754179237298,6.3182,158.31,158.25,3.49]
[1754179237493,117.62,158.33,158.27,3.49]
[1754179237705,3.33,158.31,158.27,3.49]
[1754179238004,3.33,158.31,158.28,6.3189]
[1754179238203,3.33,158.31,158.27,3.49]
[1754179239293,3.33,158.31,158.13,12.6498]
[1754179239498,3.33,158.31,158.3,3.49]
[1754179240206,136.58,158.35,158.3,3.49]
[1754179240410,3.33,158.32,158.3,3.49]
[1754179240802,6.3175,158.33,158.3,3.49]
[1754179241002,3.33,158.31,158.3,3.49]
[1754179241407,3.33,158.31,158.28,6.3191]
[1754179241607,3.33,158.31,158.29,3.49]
[1754179243102,3.33,158.3,158.29,3.49]
[1754179245797,3.33,158.31,158.3,3.49]
[1754179247004,120.93,158.33,158.3,3.49]
[1754179247601,424.22,158.36,158.31,3.49]
[1754179248006,3.33,158.36,158.33,6.3172]
[1754179248306,117.6,158.37,158.35,3.49]
[1754179248807,120.93,158.37,158.36,3.49]
[1754179249315,123.9156,158.37,158.34,3.49]
[1754179249506,127.2456,158.37,158.34,3.49]
[1754179249699,3.33,158.36,158.35,3.49]
[1754179249901,117.6,158.37,158.35,3.49]
[1754179250103,117.6,158.37,158.21,12.6438]
[1754179250312,120.93,158.37,158.36,3.49]
[1754179251814,127.2456,158.37,158.36,3.49]
[1754179252010,123.9156,158.37,158.33,6.3171]
[1754179252214,3.33,158.36,158.35,3.49]
[1754179252811,123.9156,158.37,158.35,3.49]
[1754179253012,3.33,158.35,158.34,3.49]
[1754179253207,3.33,158.35,158.22,3.49]
[1754179253717,6.3171,158.34,158.22,3.49]
[1754179253923,3.33,158.33,158.22,3.49]
[1754179254320,3.33,158.32,158.22,3.49]
[1754179254921,3.33,158.31,158.22,3.49]
[1754179255123,7.09186897,158.35,158.22,3.49]
[1754179255420,6.3173,158.33,158.29,6.3186]
[1754179255719,3.33,158.32,158.29,6.3186]
[1754179255922,3.33,158.32,158.31,3.49]
[1754179259020,3.44,158.34,158.31,3.49]
[1754179259222,10.53186897,158.36,158.31,3.49]
[1754179259519,3.44,158.35,158.31,3.49]
[1754179259822,10.53186897,158.37,158.31,3.49]
[1754179260019,3.44,158.37,158.31,3.49]
[1754179260224,3.44,158.36,158.34,3.55]
[1754179260423,3.44,158.36,158.35,3.55]
[1754179261325,3.44,158.37,158.22,12.6428]
[1754179261526,7.09186897,158.39,158.36,3.55]
[1754179261724,3.44,158.38,158.37,3.55]
[1754179261921,7.09186897,158.39,158.37,3.55]
[1754179262121,117.54,158.4,158.37,3.55]
[1754179262425,3.44,158.4,158.37,3.55]
[1754179263322,3.44,158.41,158.37,3.55]
[1754179263825,3.44,158.41,158.38,6.3149]
[1754179264028,3.44,158.41,158.39,3.55]
[1754179264222,10.53186897,158.46,158.3,3.55]
[1754179264421,10.53186897,158.46,158.29,12.6374]
[1754179264422,3.44,158.46,158.44,3.55]
[1754179264626,130.92356897,158.47,158.28,7.06095853]
[1754179264627,117.52,158.47,158.45,3.55]
[1754179264930,117.52,158.47,158.46,3.55]
[1754179265524,117.5,158.51,158.34,12.633]
[1754179265726,3.44,158.55,158.35,10.61095853]
[1754179265929,3.44,158.55,158.51,6.3097]
[1754179266129,6.3078,158.57,158.53,3.55]
[1754179266326,117.5,158.59,158.38,7.06095853]
[1754179266327,3.44,158.56,158.55,3.55]
[1754179266832,3.44,158.58,158.55,3.55]
[1754179267026,9.7473,158.58,158.52,6.3093]
[1754179267224,3.44,158.57,158.39,3.55]
[1754179267731,3.44,158.59,158.39,3.55]
[1754179267931,3.44,158.59,158.4,3.55]
[1754179268632,10.53186897,158.59,158.4,3.55]
[1754179268936,26.03186897,158.59,158.47,3.55]
[1754179269134,3.44,158.58,158.37,3.55]
[1754179269338,26.03186897,158.59,158.37,3.55]
[1754179269538,3.44,158.52,158.37,3.55]
[1754179269940,3.44,158.59,158.37,3.55]
[1754179270134,122.2,158.59,158.37,3.55]
[1754179270432,7.09186897,158.67,158.47,12.6229]
[1754179270632,3.44,158.69,158.49,3.55]
[1754179270836,7.09186897,158.79,158.69,3.55]
[1754179271035,3.44,158.78,158.69,3.55]
[1754179271242,3.44,158.85,158.69,3.55]
[1754179271433,3.44,158.83,158.74,3.55]
[1754179272937,6.2985,158.8,158.74,3.55]
[1754179273238,3.44,158.84,158.74,3.55]
[1754179273741,3.44,158.84,158.63,3.55]
[1754179274241,6.2989,158.8,158.63,3.55]
[1754179274436,3.44,158.81,158.63,3.55]
[1754179275133,6.3023,158.71,158.63,3.55]
[1754179275336,3.44,158.72,158.63,3.55]
[1754179276536,3.44,158.85,158.65,3.55]
[1754179276741,3.44,158.81,158.66,3.55]
[1754179278542,3.44,158.81,158.65,3.55]
[1754179278843,3.44,158.76,158.66,3.55]
[1754179279138,544.9,158.84,158.66,3.55]
[1754179279139,3.44,158.82,158.66,3.55]
[1754179279944,6.2988,158.8,158.67,121.18]
[1754179280245,3.44,158.84,158.68,3.55]
[1754179280432,6.2982,158.81,158.68,3.55]
[1754179280638,3.44,158.84,158.68,3.55]
[1754179281038,3.44,158.81,158.68,3.55]
[1754179281443,121.18,158.89,158.73,6.3013]
[1754179281649,3.44,158.88,158.74,3.55]
[1754179281942,3.44,158.88,158.75,6.3005]
[1754179282242,3.44,158.88,158.76,3.55]
[1754179284241,6.2979,158.82,158.76,3.55]
[1754179284547,3.44,158.86,158.77,3.55]
[1754179285444,6.2981,158.81,158.77,3.55]
[1754179285643,3.44,158.84,158.77,3.55]
[1754179286135,3.44,158.84,158.75,3.55]
[1754179286544,6.2996,158.78,158.71,3.55]
[1754179287045,3.44,158.8,158.7,121.4]
[1754179287046,6.2998,158.77,158.72,3.55]
[1754179287249,3.44,158.8,158.72,3.55]
[1754179288446,3.38,158.84,158.72,3.55]
[1754179288641,6.2993,158.78,158.73,3.45]
[1754179289346,3.38,158.84,158.76,3.45]
[1754179290250,6.2993,158.79,158.77,3.45]
[1754179290550,6.2993,158.79,158.78,3.45]
[1754179290738,3.38,158.8,158.67,3.45]
[1754179291340,3.38,158.78,158.71,3.45]
[1754179292246,6.3002,158.76,158.71,3.45]
[1754179292646,3.38,158.78,158.71,3.45]
[1754179293044,6.3005,158.75,158.71,3.45]
[1754179293460,1.09611478,158.9,158.71,3.45]
[1754179293657,3.38,158.8,158.73,6.3013]
[1754179293857,3.38,158.8,158.74,3.45]
[1754179294552,3.38,158.82,158.74,3.45]
[1754179295149,6.2986,158.8,158.75,3.45]
[1754179295349,3.38,158.83,158.75,3.45]
[1754179295557,3.38,158.83,158.75,9.7504]
[1754179295756,6.2985,158.81,158.76,3.45]
[1754179296050,3.38,158.83,158.76,3.45]
[1754179297055,3.38,158.9,158.76,3.45]
[1754179297450,6.2976,158.83,158.77,6.2997]
[1754179297651,121.68,158.91,158.78,3.45]
[1754179297850,3.38,158.9,158.78,3.45]
[1754179298046,423.76,158.93,158.81,3.45]
[1754179298557,3.38,158.92,158.81,3.45]
[1754179298755,3.38,158.91,158.81,3.45]
[1754179299146,423.76,158.93,158.81,3.45]
[1754179299451,3.38,158.93,158.81,3.45]
[1754179299654,3.38,158.93,158.71,5.64335173]
[1754179299655,3.38,158.93,158.88,3.45]
[1754179299856,3.38,158.98,158.88,3.45]
[1754179300050,6.2943,158.91,158.88,3.45]
[1754179300255,3.38,158.9,158.87,3.45]
[1754179300761,3.38,158.93,158.79,3.45]
[1754179301256,6.2946,158.91,158.85,3.45]
[1754179301653,3.38,158.93,158.89,3.45]
[1754179301857,3.38,158.93,158.87,6.2955]
[1754179302059,3.38,158.93,158.79,3.45]
[1754179302353,9.6726,158.95,158.79,3.45]
[1754179302557,3.38,158.95,158.79,3.45]
[1754179302757,3.38,158.97,158.79,3.45]
[1754179303454,546.82,159.02,158.92,3.45]
[1754179303660,3.38,158.95,158.93,3.45]
[1754179303849,546.82,159.02,158.93,3.45]
[1754179304054,3.38,158.96,158.93,3.45]
[1754179304352,9.6722,158.96,158.93,3.45]
[1754179304546,3.38,158.96,158.93,3.45]
[1754179305658,3.38,159.01,158.84,3.45]
[1754179306056,9.6725,158.96,158.84,3.45]
[1754179306258,3.38,158.96,158.84,3.45]
[1754179306463,6.2918,158.98,158.92,6.2936]
[1754179306858,423.34,159.02,158.95,3.45]
[1754179307059,3.38,159.01,158.86,3.45]
[1754179307264,3.38,159.01,158.87,3.45]
[1754179307566,123.86,159.06,158.87,3.45]
[1754179307567,3.38,159.05,158.87,3.45]
[1754179308162,3.38,159.0,158.97,3.45]
[1754179308359,3.38,159.0,158.98,3.45]
[1754179308964,123.86,159.06,158.99,3.45]
[1754179309266,3.38,159.04,158.92,3.45]
[1754179309461,3.38,159.04,158.92,5.68382669]
[1754179309664,3.38,159.04,158.93,9.13382669]
[1754179309866,9.6691,159.04,158.97,6.2915]
[1754179310072,3.38,159.04,158.98,3.45]
[1754179310560,9.6691,159.04,158.98,3.45]
[1754179311068,3.38,159.04,158.98,3.45]
[1754179311462,3.38,159.04,158.98,9.741]
[1754179311664,3.38,159.03,159.0,3.45]
[1754179311858,423.06,159.11,159.01,3.45]
[1754179312064,3.38,159.04,159.01,3.45]
[1754179312366,3.38,159.03,158.93,3.45]
[1754179312666,3.38,159.0,158.97,3.45]
[1754179312872,3.38,159.1,158.97,3.45]
[1754179313667,3.38,159.0,158.97,9.13382669]
[1754179313867,3.38,158.99,158.97,3.45]
[1754179314067,6.2905,159.01,158.95,6.2926]
[1754179314068,3.38,159.0,158.95,6.2926]
[1754179314274,3.38,159.0,158.97,3.45]
[1754179314582,3.38,159.09,158.95,3.45]
[1754179315174,3.38,159.04,158.96,9.16404936]
[1754179315368,3.38,159.04,158.97,9.16404936]
[1754179315568,3.38,159.04,158.97,3.45]
[1754179315772,3.38,159.04,158.94,3.45]
[1754179316072,3.38,159.04,158.95,5.71404936]
[1754179316271,3.38,159.01,158.9,3.45]
[1754179316474,3.38,159.01,158.91,5.71404936]
[1754179316668,6.2921,158.97,158.92,5.71404936]
[1754179316869,3.38,159.01,158.92,5.71404936]
[1754179317272,18.94,159.01,158.88,3.45]
[1754179317575,3.38,158.96,158.89,5.71404936]
[1754179317778,6.2945,158.91,158.87,5.71404936]
[1754179317975,6.2945,158.91,158.87,9.18404936]
[1754179317976,3.27,158.9,158.87,9.18404936]
[1754179318172,3.27,158.9,158.87,3.47]
[1754179318576,3.27,158.9,158.87,9.18404936]
[1754179318878,3.27,158.96,158.85,5.71404936]
[1754179319078,18.94,158.94,158.86,5.71404936]
[1754179319280,3.27,158.93,158.85,5.71404936]
[1754179319579,3.27,158.87,158.85,5.71404936]
[1754179319776,3.27,158.87,158.84,9.18404936]
[1754179319968,3.27,158.87,158.85,5.71404936]
[1754179320174,3.27,158.86,158.73,422.9]
[1754179320375,3.27,158.86,158.75,3.47]
[1754179320672,3.27,158.86,158.77,3.47]
[1754179320875,3.27,158.86,158.73,422.9]
[1754179320876,3.27,158.86,158.79,3.47]
[1754179321079,3.27,158.91,158.81,3.47]
[1754179321280,3.27,158.91,158.83,3.47]
[1754179321478,3.27,158.91,158.84,5.74368237]
[1754179321676,3.27,158.91,158.85,5.74368237]
[1754179321877,3.27,158.91,158.86,5.74368237]
[1754179322083,3.27,158.91,158.87,5.74368237]
[1754179322284,3.27,158.91,158.81,3.47]
[1754179322483,6.2954,158.88,158.81,3.47]
[1754179322785,1.17,158.89,158.81,3.47]
[1754179322986,1.17,158.91,158.81,3.47]
[1754179323581,1.17,158.85,158.82,3.47]
[1754179323983,1.17,158.85,158.83,3.47]
[1754179324182,124.04,158.92,158.83,3.47]
[1754179324478,6.295,158.89,158.74,3.47]
[1754179324984,6.295,158.89,158.81,6.2978]
[1754179325189,6.295,158.89,158.82,3.47]
[1754179325383,6.2955,158.88,158.82,3.47]
[1754179325577,1.17,158.9,158.84,3.47]
[1754179325781,1.17,158.93,158.84,3.47]
[1754179326374,1.17,158.93,158.8,6.2982]
[1754179326375,1.17,158.93,158.81,3.47]
[1754179326677,7.4667,158.85,158.81,3.47]
[1754179327283,18.94,158.96,158.77,3.47]
[1754179327284,1.17,158.95,158.77,3.47]
[1754179327672,1.17,158.95,158.73,426.37]
[1754179327673,1.17,158.93,158.73,426.37]
[1754179327871,1.17,158.93,158.55,7.06095853]
[1754179327872,1.17,158.9,158.57,423.08]
[1754179328080,1.17,158.88,158.67,3.47]
[1754179328285,1.17,158.85,158.59,3.47]
[1754179328487,18.94,158.83,158.59,3.47]
[1754179328678,18.94,158.76,158.59,3.47]
[1754179328979,1.17,158.76,158.67,6.3034]
[1754179329172,6.3013,158.74,158.68,3.47]
[1754179329573,1.17,158.76,158.68,3.47]
[1754179329773,1.17,158.79,158.68,3.47]
[1754179330282,1.17,158.79,158.69,3.47]
[1754179330984,1.17,158.73,158.7,3.47]
[1754179331680,1.17,158.72,158.61,3.47]
[1754179333180,1.17,158.74,158.66,3.47]
[1754179333888,1.17,158.76,158.66,3.47]
[1754179334887,1.17,158.77,158.61,3.47]
[1754179335288,1.17,158.7,158.63,3.47]
[1754179336588,1.17,158.68,158.6,243.83770316]
[1754179336799,1.17,158.7,158.61,3.47]
[1754179337885,6.3032,158.69,158.61,9.776]
[1754179338088,1.17,158.7,158.62,3.47]
[1754179339090,1.17,158.7,158.56,124.24]
[1754179339091,1.17,158.7,158.57,3.47]
[1754179339485,1.17,158.66,158.57,3.47]
[1754179339685,1.17,158.66,158.59,6.3066]
[1754179339886,1.17,158.69,158.6,3.47]
[1754179340292,1.17,158.69,158.63,3.47]
[1754179340985,1.17,158.69,158.64,6.3049]
[1754179341180,124.38,158.72,158.66,3.47]
[1754179341487,125.55,158.72,158.66,3.47]
[1754179342384,131.8519,158.72,158.66,3.47]
[1754179342792,131.8519,158.72,158.64,6.3048]
[1754179342793,1.17,158.71,158.64,3.47]
[1754179342990,1.17,158.71,158.51,3.47]
[1754179343193,1.17,158.71,158.59,3.47]
[1754179343588,7.4745,158.66,158.59,3.47]
[1754179343990,1.17,158.66,158.59,3.47]
[1754179344295,6.3047,158.65,158.59,3.47]
[1754179345594,1.17,158.66,158.59,3.47]
[1754179346293,6.3048,158.65,158.59,3.47]
[1754179346483,1.17,158.66,158.59,3.47]
[1754179346887,7.4744,158.66,158.6,3.47]
[1754179347085,1.17,158.66,158.6,3.47]
[1754179347488,18.94,158.71,158.5,123.98]
[1754179347699,1.17,158.7,158.51,3.47]
[1754179348094,1.18,158.66,158.59,3.48]
[1754179348797,6.3052,158.64,158.59,3.48]
[1754179348997,1.18,158.64,158.51,3.48]
[1754179349997,1.18,158.68,158.51,3.48]
[1754179350197,1.18,158.7,158.51,3.48]
[1754179350600,1.18,158.71,158.51,3.48]
[1754179350897,1.18,158.67,158.5,123.98]
[1754179351096,1.18,158.67,158.64,3.48]
[1754179351498,1.18,158.71,158.51,3.48]
[1754179351902,6.304,158.67,158.51,3.48]
[1754179352098,1.18,158.71,158.51,3.48]
[1754179352296,18.94,158.69,158.51,3.48]
[1754179352499,1.18,158.55,158.52,3.48]
[1754179352893,7.4878,158.57,158.53,3.48]
[1754179353087,1.18,158.56,158.53,3.48]
[1754179353299,1.18,158.58,158.55,3.48]
[1754179353492,1.18,158.58,158.56,3.48]
[1754179353693,125.02,158.62,158.56,3.48]
[1754179354000,1.18,158.6,158.57,3.48]
[1754179354496,6.3054,158.63,158.41,3.48]
[1754179354701,6.3054,158.63,158.41,9.793]
[1754179354895,6.3054,158.63,158.42,3.48]
[1754179355300,6.3057,158.62,158.42,3.48]
[1754179356010,1.18,158.63,158.57,3.48]
[1754179356196,1.18,158.63,158.55,3.48]
[1754179356400,169.20166781,158.65,158.55,3.48]
[1754179356702,1.18,158.7,158.55,3.48]
[1754179356906,1.18,158.7,158.63,6.305]
[1754179357094,1.18,158.75,158.64,3.48]
[1754179357296,7.09186897,158.78,158.64,3.48]
[1754179357297,1.18,158.78,158.64,3.48]
[1754179357502,1.18,158.78,158.69,3.48]
[1754179357700,6.3008,158.75,158.69,3.48]
[1754179358003,1.18,158.78,158.69,3.48]
[1754179358795,1.18,158.78,158.61,3.48]
[1754179359899,423.72,158.79,158.61,3.48]
[1754179360206,6.2998,158.77,158.6,124.9]
[1754179360401,1.18,158.76,158.73,3.48]
[1754179361404,424.89,158.79,158.61,3.48]
[1754179361614,424.89,158.79,158.62,3.48]
[1754179362109,424.89,158.79,158.73,6.301]
[1754179362508,424.89,158.79,158.76,3.48]
[1754179363198,424.89,158.79,158.74,3.48]
[1754179363404,1.17,158.78,158.74,3.48]
[1754179363610,1.17,158.78,158.75,3.48]
[1754179364004,1.17,158.81,158.62,3.48]
[1754179365106,124.76,158.82,158.62,3.48]
[1754179365311,1.17,158.78,158.62,124.4]
[1754179365512,1.17,158.78,158.63,3.48]
[1754179365714,6.3002,158.76,158.63,3.48]
[1754179366011,1.17,158.78,158.63,3.48]
[1754179366615,6.301,158.74,158.68,3.48]
[1754179366812,1.17,158.75,158.68,3.48]
[1754179367714,18.94,158.81,158.65,3.48]
[1754179367715,1.17,158.77,158.65,3.48]
[1754179367913,1.17,158.76,158.63,3.48]
[1754179368216,7.09186897,158.76,158.63,3.48]
[1754179368410,1.17,158.74,158.63,3.48]
[1754179368616,1.17,158.73,158.63,3.48]
[1754179368804,6.3028,158.7,158.63,9.785]
[1754179369120,1.17,158.71,158.64,3.48]
[1754179369415,1.17,158.71,158.65,3.48]
[1754179369616,1.17,158.71,158.62,3.48]
[1754179370227,6.3037,158.67,158.62,3.48]
[1754179370419,1.17,158.72,158.56,3.48]
[1754179371909,6.3028,158.7,158.56,3.48]
[1754179372221,1.17,158.72,158.56,3.48]
[1754179372411,6.3029,158.7,158.64,6.3046]
[1754179372718,6.3029,158.7,158.65,3.48]
[1754179372918,6.3029,158.7,158.65,9.7844]
[1754179373115,6.3029,158.7,158.66,3.48]
[1754179373420,6.3029,158.69,158.68,3.48]
[1754179373620,7.09186897,158.73,158.66,3.48]
[1754179373919,1.17,158.74,158.66,3.48]
[1754179374217,6.301,158.74,158.69,3.48]
[1754179374718,7.471,158.74,158.69,3.48]
[1754179374920,7.471,158.74,158.68,6.3029]
[1754179375110,6.3014,158.73,158.68,6.3029]
[1754179375314,6.3014,158.73,158.71,3.48]
[1754179375524,7.4714,158.73,158.71,3.48]
[1754179375714,7.4712,158.74,158.71,3.48]
[1754179376217,1.17,158.74,158.71,3.48]
[1754179376412,1.17,158.73,158.71,3.48]
[1754179376915,7.4715,158.73,158.56,3.48]
[1754179377122,1.17,158.73,158.56,3.48]
[1754179377424,7.4714,158.73,158.68,6.303]
[1754179377620,7.4714,158.73,158.69,3.48]
[1754179377913,1.17,158.73,158.7,3.48]
[1754179378118,7.4714,158.73,158.7,3.48]
[1754179378421,1.17,158.73,158.7,3.48]
[1754179378621,7.4714,158.73,158.7,3.48]
[1754179380116,1.17,158.73,158.69,6.3028]
[1754179380324,573.57186897,158.77,158.7,3.48]
[1754179380325,548.71,158.77,158.7,3.48]
[1754179380823,548.71,158.77,158.71,3.48]
[1754179381124,547.54,158.77,158.7,6.3024]
[1754179381317,1.17,158.75,158.72,3.48]
[1754179381518,547.54,158.77,158.56,12.6156]
[1754179381519,1.17,158.76,158.67,3.48]
[1754179382023,6.3026,158.7,158.67,3.48]
[1754179382220,573.57186897,158.77,158.68,3.48]
[1754179382420,1.17,158.76,158.65,3.48]
[1754179382617,1.17,158.76,158.56,3.48]
[1754179382618,18.94,158.75,158.56,3.48]
[1754179382922,1.17,158.72,158.56,3.48]
[1754179383221,1.17,158.69,158.56,3.48]
[1754179383516,20.11,158.66,158.56,3.48]
[1754179383722,18.94,158.64,158.44,123.62]
[1754179383925,1.17,158.58,158.55,3.48]
[1754179384218,1.17,158.63,158.56,3.48]
[1754179385417,124.65,158.63,158.56,3.48]
[1754179385614,124.65,158.63,158.45,3.48]
[1754179385615,1.17,158.62,158.45,3.48]
[1754179386020,1.17,158.61,158.51,3.48]
[1754179387326,6.3073,158.58,158.53,6.309]
[1754179387626,1.17,158.61,158.54,3.48]
[1754179387822,6.3081,158.56,158.55,3.48]
[1754179388125,1.17,158.62,158.55,3.48]
[1754179388322,6.3081,158.57,158.55,3.48]
[1754179388626,1.17,158.59,158.56,3.48]
[1754179389822,123.48,158.63,158.37,10.5914378]
[1754179389823,1.17,158.58,158.37,7.06095853]
[1754179390128,1.17,158.51,158.34,4.57827684]
[1754179390425,130.95,158.51,158.35,3.48]